[Event "*** Titled Tuesday Blitz"]
[Site "Chess.com"]
[Date "2020.11.03"]
[Round "1"]
[White "Synctel"]
[Black "elisak43"]
[Result "0-1"]
[WhiteElo "2002"]
[BlackElo "2490"]
[TimeControl "180+1"]
[EndTime "10:07:49 PST"]
[Termination "elisak43 won on time"]

1. e4 {[%clk 0:02:56.7]} 1... Nf6 {[%clk 0:02:57.9]} 2. e5 {[%clk 0:02:55]} 2...
Nd5 {[%clk 0:02:57.6]} 3. c4 {[%clk 0:02:55.2]} 3... Nb6 {[%clk 0:02:57.6]} 4.
d4 {[%clk 0:02:55.5]} 4... d6 {[%clk 0:02:57.9]} 5. exd6 {[%clk 0:02:56.4]} 5...
cxd6 {[%clk 0:02:58.8]} 6. Nc3 {[%clk 0:02:56.7]} 6... g6 {[%clk 0:02:59.2]} 7.
Be3 {[%clk 0:02:56.9]} 7... Bg7 {[%clk 0:02:59.9]} 8. Rc1 {[%clk 0:02:57.3]}
8... O-O {[%clk 0:03:00.5]} 9. b3 {[%clk 0:02:57.6]} 9... Bf5 {[%clk 0:03:00.4]}
10. Nf3 {[%clk 0:02:54.9]} 10... Bg4 {[%clk 0:03:00.6]} 11. Be2 {[%clk
0:02:54.6]} 11... Nc6 {[%clk 0:02:56.8]} 12. d5 {[%clk 0:02:50.6]} 12... Ne5
{[%clk 0:02:43.4]} 13. Nxe5 {[%clk 0:02:45.7]} 13... Bxe2 {[%clk 0:02:42.6]} 14.
Nxe2 {[%clk 0:02:37.2]} 14... dxe5 {[%clk 0:02:40.3]} 15. O-O {[%clk 0:02:36.4]}
15... f5 {[%clk 0:02:30.2]} 16. f3 {[%clk 0:01:59.6]} 16... Qd7 {[%clk 0:02:17]}
17. Bf2 {[%clk 0:01:33.7]} 17... e6 {[%clk 0:02:12.1]} 18. dxe6 {[%clk
0:01:27.2]} 18... Qxe6 {[%clk 0:02:11.3]} 19. Qc2 {[%clk 0:01:24.7]} 19... Rad8
{[%clk 0:02:07.5]} 20. Rcd1 {[%clk 0:01:21.2]} 20... h6 {[%clk 0:01:48.7]} 21.
Nc3 {[%clk 0:01:21.1]} 21... Nd7 {[%clk 0:01:41.3]} 22. Nd5 {[%clk 0:01:15.9]}
22... b6 {[%clk 0:01:40.8]} 23. Rfe1 {[%clk 0:01:02.5]} 23... Nf6 {[%clk
0:01:34.6]} 24. Nxf6+ {[%clk 0:00:52.6]} 24... Bxf6 {[%clk 0:01:35.5]} 25. Qc1
{[%clk 0:00:44.7]} 25... Kh7 {[%clk 0:01:30.1]} 26. Qa3 {[%clk 0:00:44.7]} 26...
Rf7 {[%clk 0:01:06.6]} 27. Rxd8 {[%clk 0:00:41.4]} 27... Bxd8 {[%clk 0:01:07.5]}
28. Rd1 {[%clk 0:00:37.4]} 28... Rd7 {[%clk 0:01:00.1]} 29. Qc1 {[%clk
0:00:31.6]} 29... Bg5 {[%clk 0:00:57]} 30. Qc2 {[%clk 0:00:30.4]} 30... Qe8
{[%clk 0:00:52]} 31. b4 {[%clk 0:00:27.4]} 31... Qd8 {[%clk 0:00:50.8]} 32.
Rxd7+ {[%clk 0:00:25.3]} 32... Qxd7 {[%clk 0:00:51.7]} 33. c5 {[%clk 0:00:25.6]}
33... bxc5 {[%clk 0:00:44.1]} 34. bxc5 {[%clk 0:00:25.8]} 34... Qc6 {[%clk
0:00:40]} 35. Qc4 {[%clk 0:00:24.1]} 35... Kg7 {[%clk 0:00:34]} 36. h3 {[%clk
0:00:23.1]} 36... Be7 {[%clk 0:00:32.8]} 37. a4 {[%clk 0:00:15.8]} 37... a6
{[%clk 0:00:32.1]} 38. Be3 {[%clk 0:00:12.2]} 38... h5 {[%clk 0:00:28.5]} 39.
Kh2 {[%clk 0:00:10.5]} 39... h4 {[%clk 0:00:19.7]} 40. Bf2 {[%clk 0:00:10.2]}
40... Bg5 {[%clk 0:00:18.7]} 41. Bxh4 {[%clk 0:00:08.9]} 41... Bxh4 {[%clk
0:00:17.9]} 42. Qxh4 {[%clk 0:00:08.7]} 42... Qxc5 {[%clk 0:00:18.5]} 43. Qd8
{[%clk 0:00:06.2]} 43... Kf7 {[%clk 0:00:12.6]} 44. Qd7+ {[%clk 0:00:05.8]}
44... Kf6 {[%clk 0:00:12]} 45. Qd8+ {[%clk 0:00:04.1]} 45... Qe7 {[%clk
0:00:12]} 46. Qd5 {[%clk 0:00:02.8]} 46... Qe6 {[%clk 0:00:11.5]} 47. Qd8+
{[%clk 0:00:02.3]} 47... Kf7 {[%clk 0:00:11.9]} 48. Qh8 {[%clk 0:00:02]} 48...
e4 {[%clk 0:00:11.8]} 49. Qh7+ {[%clk 0:00:01.1]} 49... Kf6 {[%clk 0:00:11.6]}
50. Qh8+ {[%clk 0:00:01.2]} 50... Ke7 {[%clk 0:00:11.6]} 51. Qg7+ {[%clk
0:00:01.1]} 51... Kd6 {[%clk 0:00:11.6]} 0-1

[Event "*** Titled Tuesday Blitz"]
[Site "Chess.com"]
[Date "2020.11.03"]
[Round "1"]
[White "keepitcoming"]
[Black "rugbyclub"]
[Result "1/2-1/2"]
[WhiteElo "2536"]
[BlackElo "2206"]
[TimeControl "180+1"]
[EndTime "10:07:51 PST"]
[Termination "Game drawn - timeout vs insufficient material"]

1. d4 {[%clk 0:03:00.9]} 1... e6 {[%clk 0:02:58.3]} 2. c4 {[%clk 0:03:00.8]}
2... d5 {[%clk 0:02:56.6]} 3. Nc3 {[%clk 0:03:01]} 3... a6 {[%clk 0:02:56.5]} 4.
cxd5 {[%clk 0:02:56.9]} 4... exd5 {[%clk 0:02:57.4]} 5. Bf4 {[%clk 0:02:57.1]}
5... Be6 {[%clk 0:02:54.4]} 6. e3 {[%clk 0:02:57]} 6... Bd6 {[%clk 0:02:53.7]}
7. Bxd6 {[%clk 0:02:50.9]} 7... Qxd6 {[%clk 0:02:52.5]} 8. Bd3 {[%clk
0:02:51.8]} 8... Nf6 {[%clk 0:02:51.9]} 9. Nf3 {[%clk 0:02:51.2]} 9... O-O
{[%clk 0:02:52.6]} 10. h3 {[%clk 0:02:50.6]} 10... Nbd7 {[%clk 0:02:52]} 11. O-O
{[%clk 0:02:49.6]} 11... c5 {[%clk 0:02:51.9]} 12. Rc1 {[%clk 0:02:46.6]} 12...
Rac8 {[%clk 0:02:50.4]} 13. Ng5 {[%clk 0:02:34.3]} 13... Rfe8 {[%clk 0:02:45.3]}
14. f4 {[%clk 0:02:24.3]} 14... cxd4 {[%clk 0:02:43.4]} 15. exd4 {[%clk
0:02:20.9]} 15... h6 {[%clk 0:02:40.6]} 16. f5 {[%clk 0:01:52.2]} 16... hxg5
{[%clk 0:02:39.2]} 17. fxe6 {[%clk 0:01:49.9]} 17... Rxe6 {[%clk 0:02:39.3]} 18.
Qb3 {[%clk 0:01:44.5]} 18... b5 {[%clk 0:02:32.3]} 19. Rf5 {[%clk 0:01:32.5]}
19... g4 {[%clk 0:02:21.8]} 20. h4 {[%clk 0:01:18.9]} 20... g6 {[%clk
0:02:09.8]} 21. Rg5 {[%clk 0:00:56.8]} 21... g3 {[%clk 0:02:03.9]} 22. Rf1
{[%clk 0:00:51]} 22... Rce8 {[%clk 0:02:00.9]} 23. Nxd5 {[%clk 0:00:38.1]} 23...
Re1 {[%clk 0:01:58.3]} 24. Rxg6+ {[%clk 0:00:27.1]} 24... fxg6 {[%clk
0:01:50.4]} 25. Nxf6+ {[%clk 0:00:26]} 25... Kh8 {[%clk 0:01:38.5]} 26. Nxe8
{[%clk 0:00:21.3]} 26... Qe7 {[%clk 0:01:21.7]} 27. Qf7 {[%clk 0:00:14.3]} 27...
Rxf1+ {[%clk 0:01:18.8]} 28. Qxf1 {[%clk 0:00:11.7]} 28... Qxe8 {[%clk 0:01:15]}
29. Qf4 {[%clk 0:00:07.6]} 29... Qe1+ {[%clk 0:01:10.3]} 30. Bf1 {[%clk
0:00:07.2]} 30... Kg7 {[%clk 0:01:08.9]} 31. d5 {[%clk 0:00:05.3]} 31... Nf6
{[%clk 0:01:03.5]} 32. d6 {[%clk 0:00:05.1]} 32... a5 {[%clk 0:00:39.5]} 33. Qd4
{[%clk 0:00:04.4]} 33... Kf7 {[%clk 0:00:35.8]} 34. d7 {[%clk 0:00:04.3]} 34...
Qf2+ {[%clk 0:00:33.2]} 35. Qxf2 {[%clk 0:00:03.4]} 35... gxf2+ {[%clk
0:00:33.9]} 36. Kxf2 {[%clk 0:00:04.3]} 36... Nxd7 {[%clk 0:00:34.1]} 37. Bxb5
{[%clk 0:00:04.6]} 37... Ne5 {[%clk 0:00:34.6]} 38. Be2 {[%clk 0:00:04]} 38...
Kf6 {[%clk 0:00:34.8]} 39. Ke3 {[%clk 0:00:03.7]} 39... Ke6 {[%clk 0:00:34]} 40.
g4 {[%clk 0:00:03.8]} 40... Kf6 {[%clk 0:00:33.7]} 41. h5 {[%clk 0:00:04]} 41...
gxh5 {[%clk 0:00:32.2]} 42. gxh5 {[%clk 0:00:04.9]} 42... Nf7 {[%clk 0:00:30.3]}
43. Kf4 {[%clk 0:00:04.7]} 43... Nh6 {[%clk 0:00:27.8]} 44. a3 {[%clk
0:00:03.1]} 44... Nf7 {[%clk 0:00:26.3]} 45. b4 {[%clk 0:00:03.6]} 45... axb4
{[%clk 0:00:27]} 46. axb4 {[%clk 0:00:04.5]} 46... Nh6 {[%clk 0:00:23.6]} 47.
Bf3 {[%clk 0:00:04.3]} 47... Ke6 {[%clk 0:00:21.4]} 48. Kg5 {[%clk 0:00:04.2]}
48... Nf7+ {[%clk 0:00:21.3]} 49. Kg6 {[%clk 0:00:04.3]} 49... Ne5+ {[%clk
0:00:21.2]} 50. Kg7 {[%clk 0:00:04.1]} 50... Nxf3 {[%clk 0:00:21.4]} 51. h6
{[%clk 0:00:04]} 51... Nh4 {[%clk 0:00:16.1]} 52. h7 {[%clk 0:00:02.8]} 52...
Nf5+ {[%clk 0:00:16.8]} 1/2-1/2

[Event "*** Titled Tuesday Blitz"]
[Site "Chess.com"]
[Date "2020.11.03"]
[Round "1"]
[White "Sibelephant"]
[Black "BigAl"]
[Result "1-0"]
[WhiteElo "3088"]
[BlackElo "2471"]
[TimeControl "180+1"]
[EndTime "10:07:56 PST"]
[Termination "Sibelephant won by resignation"]

1. d4 {[%clk 0:02:58.4]} 1... Nf6 {[%clk 0:02:59.6]} 2. Nf3 {[%clk 0:02:58.1]}
2... g6 {[%clk 0:03:00.3]} 3. g3 {[%clk 0:02:57.8]} 3... Bg7 {[%clk 0:03:00.9]}
4. Bg2 {[%clk 0:02:58.3]} 4... O-O {[%clk 0:03:01.6]} 5. O-O {[%clk 0:02:58.4]}
5... d6 {[%clk 0:03:02.3]} 6. Nc3 {[%clk 0:02:58.2]} 6... d5 {[%clk 0:03:01.5]}
7. Re1 {[%clk 0:02:57.9]} 7... c6 {[%clk 0:02:55.2]} 8. e4 {[%clk 0:02:57.2]}
8... dxe4 {[%clk 0:02:55.5]} 9. Nxe4 {[%clk 0:02:57.5]} 9... Nxe4 {[%clk
0:02:53.9]} 10. Rxe4 {[%clk 0:02:57.4]} 10... Bf5 {[%clk 0:02:51]} 11. Re1
{[%clk 0:02:57.2]} 11... Nd7 {[%clk 0:02:48.8]} 12. Bg5 {[%clk 0:02:50.3]} 12...
Nf6 {[%clk 0:02:48.6]} 13. c3 {[%clk 0:02:50]} 13... Re8 {[%clk 0:02:39.5]} 14.
Qb3 {[%clk 0:02:31.5]} 14... Qb6 {[%clk 0:02:38.1]} 15. Nd2 {[%clk 0:02:27.4]}
15... Qxb3 {[%clk 0:02:31.1]} 16. axb3 {[%clk 0:02:26.3]} 16... h6 {[%clk
0:02:15.8]} 17. Be3 {[%clk 0:02:11.3]} 17... Nd5 {[%clk 0:02:12.8]} 18. Nc4
{[%clk 0:02:11.5]} 18... a6 {[%clk 0:02:00.8]} 19. Bd2 {[%clk 0:02:10.4]} 19...
Rad8 {[%clk 0:02:00.3]} 20. b4 {[%clk 0:02:05.7]} 20... Kf8 {[%clk 0:01:52.6]}
21. h3 {[%clk 0:01:57.1]} 21... h5 {[%clk 0:01:52.4]} 22. Bg5 {[%clk 0:01:51.6]}
22... Bf6 {[%clk 0:01:51.6]} 23. Bxf6 {[%clk 0:01:48.6]} 23... Nxf6 {[%clk
0:01:46.1]} 24. Na5 {[%clk 0:01:43.7]} 24... Rd7 {[%clk 0:01:45.8]} 25. Kh2
{[%clk 0:01:34.3]} 25... Be6 {[%clk 0:01:42.1]} 26. Nxc6 {[%clk 0:00:55.9]}
26... bxc6 {[%clk 0:01:40.8]} 27. Bxc6 {[%clk 0:00:56.5]} 27... Bc4 {[%clk
0:01:32.5]} 28. Ra3 {[%clk 0:00:45.9]} 28... Rc8 {[%clk 0:01:14.4]} 29. Bxd7
{[%clk 0:00:45.3]} 29... Nxd7 {[%clk 0:01:14.4]} 30. b3 {[%clk 0:00:45.7]} 30...
Bd5 {[%clk 0:01:05]} 31. c4 {[%clk 0:00:45.8]} 31... Bb7 {[%clk 0:01:05.3]} 32.
d5 {[%clk 0:00:46.3]} 32... g5 {[%clk 0:00:50.2]} 33. Ra5 {[%clk 0:00:45.5]}
33... Nf6 {[%clk 0:00:29.6]} 34. Rc5 {[%clk 0:00:45.2]} 34... Rd8 {[%clk
0:00:27.4]} 35. Rc7 {[%clk 0:00:44.5]} 35... Rd7 {[%clk 0:00:26.8]} 36. Rxd7
{[%clk 0:00:44.3]} 36... Nxd7 {[%clk 0:00:27.7]} 37. Kg1 {[%clk 0:00:31.5]}
37... g4 {[%clk 0:00:26.7]} 38. hxg4 {[%clk 0:00:29.7]} 38... hxg4 {[%clk
0:00:27]} 39. Kf1 {[%clk 0:00:26.9]} 39... f6 {[%clk 0:00:26.7]} 40. Ke2 {[%clk
0:00:26.2]} 40... Ne5 {[%clk 0:00:26.8]} 41. Ke3 {[%clk 0:00:26.8]} 41... Ke8
{[%clk 0:00:25.7]} 42. Rh1 {[%clk 0:00:26.4]} 42... Kd7 {[%clk 0:00:25.7]} 43.
Rh8 {[%clk 0:00:26.1]} 43... Kc7 {[%clk 0:00:20.3]} 44. Kd4 {[%clk 0:00:23.5]}
44... Nf3+ {[%clk 0:00:20.4]} 45. Ke3 {[%clk 0:00:19.3]} 45... Ne1 {[%clk
0:00:17.9]} 46. Kd2 {[%clk 0:00:15.1]} 46... Nf3+ {[%clk 0:00:17.9]} 47. Kd3
{[%clk 0:00:15.6]} 47... Ne1+ {[%clk 0:00:17.9]} 48. Kc3 {[%clk 0:00:15.6]}
48... Nf3 {[%clk 0:00:16.6]} 49. Re8 {[%clk 0:00:15.6]} 49... Kd7 {[%clk
0:00:16.3]} 50. Rg8 {[%clk 0:00:15.8]} 50... Ne5 {[%clk 0:00:15.7]} 51. Kd4
{[%clk 0:00:16.5]} 51... Nf3+ {[%clk 0:00:13.5]} 52. Kc5 {[%clk 0:00:16.9]}
52... Nd2 {[%clk 0:00:13.9]} 53. Kb6 {[%clk 0:00:16.5]} 53... Bc8 {[%clk
0:00:13.7]} 54. c5 {[%clk 0:00:16.9]} 54... Nxb3 {[%clk 0:00:13.5]} 55. c6+
{[%clk 0:00:17.3]} 55... Kd6 {[%clk 0:00:12.5]} 56. Rxc8 {[%clk 0:00:17.4]}
56... Kxd5 {[%clk 0:00:12.3]} 57. Rd8+ {[%clk 0:00:17.8]} 57... Ke6 {[%clk
0:00:12.3]} 58. c7 {[%clk 0:00:18.3]} 1-0

[Event "*** Titled Tuesday Blitz"]
[Site "Chess.com"]
[Date "2020.11.03"]
[Round "1"]
[White "KetiGrant"]
[Black "enestnrvrd"]
[Result "0-1"]
[WhiteElo "2293"]
[BlackElo "2607"]
[TimeControl "180+1"]
[EndTime "10:07:56 PST"]
[Termination "enestnrvrd won on time"]

1. e4 {[%clk 0:02:56.7]} 1... c6 {[%clk 0:03:00.1]} 2. d4 {[%clk 0:02:55.3]}
2... d5 {[%clk 0:02:58.4]} 3. Nc3 {[%clk 0:02:47.6]} 3... dxe4 {[%clk
0:02:57.5]} 4. Nxe4 {[%clk 0:02:47.4]} 4... Bf5 {[%clk 0:02:56.7]} 5. Ng3 {[%clk
0:02:47.3]} 5... Bg6 {[%clk 0:02:56.4]} 6. h4 {[%clk 0:02:47.9]} 6... h6 {[%clk
0:02:56.1]} 7. Nf3 {[%clk 0:02:48.1]} 7... Nd7 {[%clk 0:02:55.8]} 8. h5 {[%clk
0:02:48.1]} 8... Bh7 {[%clk 0:02:55.7]} 9. Bd3 {[%clk 0:02:49]} 9... Bxd3 {[%clk
0:02:55.7]} 10. Qxd3 {[%clk 0:02:48.1]} 10... e6 {[%clk 0:02:56.6]} 11. Bf4
{[%clk 0:02:45.9]} 11... Ngf6 {[%clk 0:02:53.1]} 12. O-O-O {[%clk 0:02:44.5]}
12... Be7 {[%clk 0:02:52.5]} 13. Kb1 {[%clk 0:02:39.3]} 13... O-O {[%clk
0:02:50.6]} 14. Ne4 {[%clk 0:02:34.3]} 14... Nxe4 {[%clk 0:02:48.9]} 15. Qxe4
{[%clk 0:02:35.2]} 15... Nf6 {[%clk 0:02:49]} 16. Qe2 {[%clk 0:02:35]} 16... Qd5
{[%clk 0:02:48.8]} 17. Ne5 {[%clk 0:02:29.6]} 17... Qe4 {[%clk 0:02:38.4]} 18.
Qxe4 {[%clk 0:02:20.7]} 18... Nxe4 {[%clk 0:02:37.1]} 19. Be3 {[%clk 0:02:21.6]}
19... Rfd8 {[%clk 0:02:36]} 20. g4 {[%clk 0:02:17.5]} 20... Bg5 {[%clk
0:02:32.5]} 21. f4 {[%clk 0:02:13.2]} 21... Bf6 {[%clk 0:02:30.8]} 22. Rhe1
{[%clk 0:02:09.5]} 22... Nd6 {[%clk 0:02:26.6]} 23. b3 {[%clk 0:02:07.1]} 23...
a5 {[%clk 0:02:20.4]} 24. a4 {[%clk 0:02:05.5]} 24... Ne8 {[%clk 0:02:14.9]} 25.
Nc4 {[%clk 0:01:58.5]} 25... Nc7 {[%clk 0:02:13.5]} 26. g5 {[%clk 0:01:52.3]}
26... Be7 {[%clk 0:02:09.1]} 27. gxh6 {[%clk 0:01:46.2]} 27... gxh6 {[%clk
0:02:06.9]} 28. f5 {[%clk 0:01:46.7]} 28... Kh7 {[%clk 0:02:06.6]} 29. Bf4
{[%clk 0:01:36]} 29... Nd5 {[%clk 0:02:05.9]} 30. Bd2 {[%clk 0:01:35.7]} 30...
exf5 {[%clk 0:01:44.9]} 31. Nxa5 {[%clk 0:01:29.9]} 31... Bg5 {[%clk 0:01:37.7]}
32. Nxb7 {[%clk 0:01:26.2]} 32... Rdb8 {[%clk 0:01:34.3]} 33. Nc5 {[%clk
0:01:21.8]} 33... Bf6 {[%clk 0:01:29.6]} 34. Nd7 {[%clk 0:01:11.5]} 34... Rb7
{[%clk 0:01:25.4]} 35. Nxf6+ {[%clk 0:01:08.4]} 35... Nxf6 {[%clk 0:01:26.3]}
36. Re5 {[%clk 0:01:06.6]} 36... Rxa4 {[%clk 0:01:22.7]} 37. Rxf5 {[%clk
0:01:03.5]} 37... Nd5 {[%clk 0:01:21]} 38. Rdf1 {[%clk 0:00:57.1]} 38... Rxd4
{[%clk 0:01:10.1]} 39. Rxf7+ {[%clk 0:00:44.7]} 39... Rxf7 {[%clk 0:01:11]} 40.
Rxf7+ {[%clk 0:00:44.4]} 40... Kg8 {[%clk 0:01:11.9]} 41. Rf2 {[%clk 0:00:44.2]}
41... Rh4 {[%clk 0:01:12.5]} 42. Rf5 {[%clk 0:00:43.3]} 42... Kg7 {[%clk
0:01:05.9]} 43. c4 {[%clk 0:00:38.5]} 43... Ne7 {[%clk 0:01:03.8]} 44. Bc3+
{[%clk 0:00:36.7]} 44... Kg8 {[%clk 0:01:03]} 45. Re5 {[%clk 0:00:36.1]} 45...
Kf7 {[%clk 0:01:01.9]} 46. Kb2 {[%clk 0:00:29.8]} 46... Rh3 {[%clk 0:00:42.8]}
47. Bd2 {[%clk 0:00:28.1]} 47... Rh2 {[%clk 0:00:40.3]} 48. Kc3 {[%clk
0:00:27.4]} 48... Ng8 {[%clk 0:00:25.5]} 49. b4 {[%clk 0:00:18.2]} 49... Rh3+
{[%clk 0:00:25]} 50. Kd4 {[%clk 0:00:13.6]} 50... Nf6 {[%clk 0:00:20.6]} 51. Rf5
{[%clk 0:00:06.8]} 51... Ke6 {[%clk 0:00:20.1]} 52. Re5+ {[%clk 0:00:06.5]}
52... Kd6 {[%clk 0:00:19.2]} 53. Bf4 {[%clk 0:00:03.3]} 53... Rh4 {[%clk
0:00:18.6]} 0-1

[Event "*** Titled Tuesday Blitz"]
[Site "Chess.com"]
[Date "2020.11.03"]
[Round "1"]
[White "MPGM"]
[Black "TigrVShlyape"]
[Result "0-1"]
[WhiteElo "2453"]
[BlackElo "2905"]
[TimeControl "180+1"]
[EndTime "10:08:00 PST"]
[Termination "TigrVShlyape won on time"]

1. d4 {[%clk 0:02:59.2]} 1... Nf6 {[%clk 0:02:59.2]} 2. c4 {[%clk 0:02:59.4]}
2... e6 {[%clk 0:02:59]} 3. Nc3 {[%clk 0:02:59.6]} 3... Bb4 {[%clk 0:02:55.3]}
4. f3 {[%clk 0:02:59.9]} 4... d5 {[%clk 0:02:47.1]} 5. a3 {[%clk 0:02:55.3]}
5... Bxc3+ {[%clk 0:02:46.5]} 6. bxc3 {[%clk 0:02:56.2]} 6... c6 {[%clk
0:02:46.6]} 7. e3 {[%clk 0:02:48.9]} 7... b6 {[%clk 0:02:45.9]} 8. cxd5 {[%clk
0:02:48.3]} 8... cxd5 {[%clk 0:02:45]} 9. Bd3 {[%clk 0:02:47.9]} 9... O-O {[%clk
0:02:35]} 10. Ne2 {[%clk 0:02:47]} 10... Ba6 {[%clk 0:02:35]} 11. O-O {[%clk
0:02:42.8]} 11... Bxd3 {[%clk 0:02:33]} 12. Qxd3 {[%clk 0:02:43.7]} 12... Qc8
{[%clk 0:02:32.8]} 13. e4 {[%clk 0:02:42.5]} 13... Qa6 {[%clk 0:02:32.3]} 14.
Qxa6 {[%clk 0:02:40.6]} 14... Nxa6 {[%clk 0:02:32.2]} 15. e5 {[%clk 0:02:40.2]}
15... Nd7 {[%clk 0:02:29.3]} 16. a4 {[%clk 0:02:36.2]} 16... Nab8 {[%clk
0:02:28.3]} 17. h4 {[%clk 0:02:20.7]} 17... Nc6 {[%clk 0:02:25.4]} 18. h5 {[%clk
0:02:11.3]} 18... f6 {[%clk 0:02:25.4]} 19. f4 {[%clk 0:02:04.5]} 19... f5
{[%clk 0:02:22.4]} 20. Kf2 {[%clk 0:01:58.9]} 20... Rac8 {[%clk 0:02:13.4]} 21.
Rg1 {[%clk 0:01:49.7]} 21... Na5 {[%clk 0:01:43.4]} 22. g4 {[%clk 0:01:46.7]}
22... fxg4 {[%clk 0:01:41.4]} 23. Rxg4 {[%clk 0:01:47.6]} 23... Rf7 {[%clk
0:01:39.1]} 24. Be3 {[%clk 0:01:31.6]} 24... Nc6 {[%clk 0:01:30.6]} 25. Ke1
{[%clk 0:01:01.2]} 25... Ne7 {[%clk 0:01:26.5]} 26. Kd2 {[%clk 0:01:01.4]} 26...
Nb8 {[%clk 0:01:22.2]} 27. a5 {[%clk 0:00:55.2]} 27... b5 {[%clk 0:01:19.9]} 28.
a6 {[%clk 0:00:37.5]} 28... Rc6 {[%clk 0:01:17.5]} 29. Rb1 {[%clk 0:00:34.6]}
29... Rb6 {[%clk 0:01:16.7]} 30. Kd3 {[%clk 0:00:24.2]} 30... Nxa6 {[%clk
0:01:14.5]} 31. Bc1 {[%clk 0:00:24.4]} 31... Nf5 {[%clk 0:01:11.6]} 32. Ba3
{[%clk 0:00:23.4]} 32... Rfb7 {[%clk 0:01:04.2]} 33. Bb4 {[%clk 0:00:18.6]}
33... Nxb4+ {[%clk 0:01:00.1]} 34. Rxb4 {[%clk 0:00:17.3]} 34... Rc6 {[%clk
0:00:57]} 35. Rg1 {[%clk 0:00:16.1]} 35... a5 {[%clk 0:00:55.9]} 36. Rb2 {[%clk
0:00:15.8]} 36... b4 {[%clk 0:00:53.7]} 37. Rgb1 {[%clk 0:00:12.7]} 37... Rc4
{[%clk 0:00:52.4]} 38. cxb4 {[%clk 0:00:09.4]} 38... Rcxb4 {[%clk 0:00:44.7]}
39. Rxb4 {[%clk 0:00:09.4]} 39... Rxb4 {[%clk 0:00:45]} 40. Rxb4 {[%clk
0:00:06]} 40... axb4 {[%clk 0:00:44.8]} 41. Kc2 {[%clk 0:00:06.6]} 41... Kf7
{[%clk 0:00:44.4]} 42. Kb3 {[%clk 0:00:06.6]} 42... g6 {[%clk 0:00:44.8]} 43.
hxg6+ {[%clk 0:00:06.5]} 43... Kxg6 {[%clk 0:00:45]} 44. Kxb4 {[%clk 0:00:06.7]}
44... h5 {[%clk 0:00:41.2]} 45. Kc5 {[%clk 0:00:06.2]} 45... h4 {[%clk
0:00:41.4]} 46. Ng1 {[%clk 0:00:03.7]} 46... Kh5 {[%clk 0:00:38.9]} 47. Kc6
{[%clk 0:00:02.8]} 47... Kg4 {[%clk 0:00:38.9]} 48. Kd7 {[%clk 0:00:02.7]} 48...
Nxd4 {[%clk 0:00:39]} 49. Kd6 {[%clk 0:00:02]} 49... h3 {[%clk 0:00:36.8]} 50.
Nxh3 {[%clk 0:00:01.8]} 50... Kxh3 {[%clk 0:00:36.6]} 51. f5 {[%clk 0:00:02.7]}
51... Nxf5+ {[%clk 0:00:20]} 52. Kxe6 {[%clk 0:00:03.2]} 52... Ne3 {[%clk
0:00:16.9]} 53. Kf7 {[%clk 0:00:03.2]} 53... d4 {[%clk 0:00:15.8]} 54. e6 {[%clk
0:00:03.8]} 54... Nd5 {[%clk 0:00:15.9]} 0-1

[Event "*** Titled Tuesday Blitz"]
[Site "Chess.com"]
[Date "2020.11.03"]
[Round "1"]
[White "ChelsieMonica"]
[Black "alexrustemov"]
[Result "0-1"]
[WhiteElo "2329"]
[BlackElo "2660"]
[TimeControl "180+1"]
[EndTime "10:08:02 PST"]
[Termination "alexrustemov won by resignation"]

1. c4 {[%clk 0:02:58.5]} 1... f5 {[%clk 0:02:58.4]} 2. Nf3 {[%clk 0:02:58.3]}
2... Nf6 {[%clk 0:02:59]} 3. e3 {[%clk 0:02:58.7]} 3... g6 {[%clk 0:02:59.6]} 4.
d4 {[%clk 0:02:59.6]} 4... Bg7 {[%clk 0:03:00.1]} 5. Be2 {[%clk 0:03:00.5]} 5...
d6 {[%clk 0:03:00.6]} 6. O-O {[%clk 0:03:01.4]} 6... O-O {[%clk 0:03:01.1]} 7.
Nc3 {[%clk 0:03:02.3]} 7... Nc6 {[%clk 0:03:00.5]} 8. d5 {[%clk 0:03:03.2]} 8...
Ne5 {[%clk 0:03:00.8]} 9. Nd4 {[%clk 0:02:58.3]} 9... c5 {[%clk 0:02:59.2]} 10.
dxc6 {[%clk 0:02:57.2]} 10... Nxc6 {[%clk 0:02:58.2]} 11. Bf3 {[%clk 0:02:56.9]}
11... Bd7 {[%clk 0:02:57]} 12. b3 {[%clk 0:02:47.1]} 12... Rc8 {[%clk 0:02:48]}
13. Bb2 {[%clk 0:02:43.7]} 13... Qe8 {[%clk 0:02:44.3]} 14. Rc1 {[%clk
0:02:32.7]} 14... Qf7 {[%clk 0:02:43.8]} 15. h3 {[%clk 0:02:28.8]} 15... g5
{[%clk 0:02:35.8]} 16. Nd5 {[%clk 0:02:20.2]} 16... Kh8 {[%clk 0:01:50]} 17.
Nxc6 {[%clk 0:02:12.3]} 17... bxc6 {[%clk 0:01:42.8]} 18. Nxf6 {[%clk
0:02:11.6]} 18... Bxf6 {[%clk 0:01:43.7]} 19. Bxf6+ {[%clk 0:02:10.8]} 19...
Qxf6 {[%clk 0:01:44.3]} 20. Qd4 {[%clk 0:02:09.5]} 20... c5 {[%clk 0:01:40.4]}
21. Qxf6+ {[%clk 0:02:03]} 21... Rxf6 {[%clk 0:01:41.3]} 22. Rfd1 {[%clk
0:02:02.6]} 22... Kg7 {[%clk 0:01:35.8]} 23. e4 {[%clk 0:01:58.3]} 23... fxe4
{[%clk 0:01:18.2]} 24. Bxe4 {[%clk 0:01:55.7]} 24... h6 {[%clk 0:01:08.7]} 25.
Rd2 {[%clk 0:01:51.3]} 25... a5 {[%clk 0:01:08]} 26. Rc3 {[%clk 0:01:39.9]}
26... Rb8 {[%clk 0:01:05.5]} 27. Rf3 {[%clk 0:01:31.5]} 27... a4 {[%clk
0:01:02]} 28. bxa4 {[%clk 0:01:16.9]} 28... Bxa4 {[%clk 0:00:59.8]} 29. Ra3
{[%clk 0:01:13.2]} 29... Rb4 {[%clk 0:00:59]} 30. Bd3 {[%clk 0:01:10.8]} 30...
Rf8 {[%clk 0:00:57.9]} 31. g3 {[%clk 0:01:07]} 31... Rfb8 {[%clk 0:00:55]} 32.
Kg2 {[%clk 0:01:06]} 32... Bc6+ {[%clk 0:00:54.2]} 33. Kf1 {[%clk 0:01:03.3]}
33... Rb2 {[%clk 0:00:50.8]} 34. Ke2 {[%clk 0:01:01.3]} 34... Rxd2+ {[%clk
0:00:46.4]} 35. Kxd2 {[%clk 0:01:02.2]} 35... Rb2+ {[%clk 0:00:46.8]} 36. Ke3
{[%clk 0:01:00.7]} 36... Kf6 {[%clk 0:00:45.4]} 37. Ra6 {[%clk 0:00:59.9]} 37...
Bg2 {[%clk 0:00:44.5]} 38. f4 {[%clk 0:00:56]} 38... Bxh3 {[%clk 0:00:43.1]} 39.
fxg5+ {[%clk 0:00:55.1]} 39... hxg5 {[%clk 0:00:44]} 40. a4 {[%clk 0:00:55.4]}
40... Ra2 {[%clk 0:00:43.6]} 41. a5 {[%clk 0:00:54.9]} 41... Bf5 {[%clk
0:00:34.6]} 42. Be2 {[%clk 0:00:51.1]} 42... Ra3+ {[%clk 0:00:33.9]} 43. Kf2
{[%clk 0:00:49.7]} 43... Ke5 {[%clk 0:00:32.5]} 44. Ra8 {[%clk 0:00:47.4]} 44...
Be4 {[%clk 0:00:30.4]} 45. Ra7 {[%clk 0:00:43.5]} 45... e6 {[%clk 0:00:29.8]}
46. a6 {[%clk 0:00:42.9]} 46... Kd4 {[%clk 0:00:30.1]} 47. Rd7 {[%clk
0:00:40.4]} 47... d5 {[%clk 0:00:27.1]} 48. a7 {[%clk 0:00:38.1]} 48... Ra2
{[%clk 0:00:26.1]} 49. cxd5 {[%clk 0:00:36.8]} 49... exd5 {[%clk 0:00:25.2]} 50.
Rg7 {[%clk 0:00:33.9]} 50... Bd3 {[%clk 0:00:23.2]} 51. Re7 {[%clk 0:00:32.7]}
51... Bxe2 {[%clk 0:00:21]} 52. Rxe2 {[%clk 0:00:33.6]} 52... Rxa7 {[%clk
0:00:21.2]} 53. Kf3 {[%clk 0:00:32.9]} 53... c4 {[%clk 0:00:21.2]} 54. Kg4
{[%clk 0:00:32.1]} 54... Rg7 {[%clk 0:00:20.4]} 55. Kf5 {[%clk 0:00:30.3]} 55...
c3 {[%clk 0:00:20.7]} 56. Kf6 {[%clk 0:00:29.1]} 56... Rg8 {[%clk 0:00:21]} 57.
Kf7 {[%clk 0:00:28.4]} 57... Rc8 {[%clk 0:00:20.9]} 58. Kf6 {[%clk 0:00:25.8]}
58... c2 {[%clk 0:00:20.9]} 59. Rxc2 {[%clk 0:00:24.8]} 59... Rxc2 {[%clk
0:00:20.2]} 60. Kxg5 {[%clk 0:00:25.7]} 60... Ke5 {[%clk 0:00:20.3]} 0-1